bitfinex/quotes_SOLUSD_20220130
["timestamp","ask_amount","ask_price","bid_price","bid_amount"]
[1643578522778,36.04349865,92.419,92.35,16.244]
[1643578525083,16.243,92.41,92.35,16.244]
[1643578530792,16.243,92.41,92.351,0.25]
[1643578531191,16.243,92.41,92.347,24.462]
[1643578532194,2.95669142,92.409,92.3,24.4752]
[1643578532395,27.40399142,92.409,92.301,24.1955]
[1643578532597,32.20599441,92.379,92.271,24.2655]
[1643578532797,48.1024,92.378,92.28,6.0]
[1643578533397,48.1024,92.378,92.281,0.25]
[1643578533596,36.04349865,92.349,92.29,16.254]
[1643578533800,36.04349865,92.349,92.291,24.8008]
[1643578534000,36.04349865,92.349,92.291,24.5508]
[1643578534813,36.04349865,92.349,92.292,0.25]
[1643578535417,48.1024,92.378,92.3,16.253]
[1643578535815,48.1024,92.378,92.31,6.0]
[1643578536216,48.1024,92.378,92.311,0.25]
[1643578536415,48.1024,92.378,92.31,6.0]
[1643578536416,33.2479426,92.377,92.32,16.249]
[1643578536616,33.2479426,92.377,92.302,47.1571]
[1643578537317,33.2479426,92.377,92.303,0.25]
[1643578537616,33.2479426,92.377,92.302,47.1571]
[1643578537817,33.2479426,92.377,92.303,0.25]
[1643578538020,16.25,92.37,92.31,16.251]
[1643578540018,16.25,92.37,92.311,0.25]
[1643578540218,33.2479426,92.377,92.32,16.249]
[1643578540418,33.2479426,92.377,92.321,0.25]
[1643578541021,33.2479426,92.377,92.32,16.249]
[1643578542422,33.2479426,92.377,92.321,0.25]
[1643578544624,16.25,92.37,92.32,16.249]
[1643578544826,16.25,92.37,92.31,16.251]
[1643578547326,16.25,92.37,92.279,1.50106767]
[1643578547327,11.39689118,92.262,92.238,0.00621763]
[1643578547627,3.62847047,92.201,92.157,16.4609]
[1643578547825,3.62847047,92.201,92.111,73.8938]
[1643578548029,3.62847047,92.201,92.11,54.247]
[1643578548227,3.62847047,92.201,92.112,3.00977937]
[1643578548429,3.62847047,92.201,92.113,33.32494243]
[1643578548826,15.66,92.23,92.113,33.32494243]
[1643578548827,2.95669142,92.261,92.12,16.277]
[1643578549126,11.88426999,92.411,92.121,107.8]
[1643578549127,15.66,92.24,92.121,107.8]
[1643578549529,15.66,92.24,92.121,110.27719373]
[1643578549728,15.66,92.24,92.122,2.47719373]
[1643578549928,15.66,92.24,92.142,35.5130826]
[1643578550128,15.66,92.24,92.15,6.0]
[1643578550528,15.66,92.24,92.151,110.27719373]
[1643578550937,15.66,92.24,92.161,45.42298798]
[1643578551330,15.66,92.24,92.171,107.8]
[1643578551531,15.66,92.24,92.17,6.0]
[1643578551930,15.66,92.24,92.171,0.25]
[1643578552130,15.66,92.24,92.181,42.85502082]
[1643578553633,31.933,92.24,92.181,42.85502082]
[1643578558539,2.95669142,92.239,92.181,42.85502082]
[1643578558736,16.28,92.23,92.181,42.85502082]
[1643578558936,31.94,92.23,92.181,42.85502082]
[1643578559136,44.57,92.23,92.181,42.85502082]
[1643578560237,2.95669142,92.229,92.133,107.8]
[1643578560438,16.279,92.21,92.134,0.25]
[1643578560638,16.279,92.21,92.15,16.279]
[1643578560838,47.6844,92.229,92.151,0.25]
[1643578561442,17.02632442,92.228,92.06,204.3999]
[1643578561638,107.8,92.219,92.11,16.286]
[1643578561837,107.8,92.209,92.11,16.286]
[1643578562039,15.66,92.2,92.11,16.286]
[1643578562438,15.66,92.2,92.111,42.79898006]
[1643578563240,16.286,92.19,92.12,16.283]
[1643578563439,15.66,92.18,92.12,16.283]
[1643578563641,15.66,92.18,92.112,0.25]
[1643578565139,31.945,92.18,92.131,42.27277263]
[1643578567442,15.66,92.18,92.14,16.284]
[1643578568442,31.945,92.18,92.131,42.27277263]
[1643578571349,15.66,92.18,92.14,16.283]
[1643578572548,31.945,92.18,92.131,42.27277263]
[1643578578653,15.66,92.18,92.131,42.27277263]
[1643578578851,24.7601,92.199,92.14,6.0]
[1643578579252,15.66,92.2,92.141,0.25]
[1643578579452,201.33775339,92.306,92.141,2.73267368]
[1643578579653,48.6241,92.259,92.141,2.73267368]
[1643578579854,24.7418,92.305,92.15,6.0]
[1643578580055,74.0382,92.305,92.151,68.36061179]
[1643578580257,15.66,92.3,92.151,71.09328547]
[1643578580454,15.66,92.3,92.16,6.0]
[1643578580854,31.925,92.3,92.19,16.268]
[1643578581054,31.925,92.3,92.2,6.0]
[1643578581256,31.925,92.3,92.201,108.05]
[1643578581659,31.925,92.3,92.201,0.25]
[1643578582056,31.925,92.3,92.23,16.266]
[1643578582257,31.925,92.3,92.231,45.28154479]
[1643578583156,31.925,92.3,92.24,16.266]
[1643578586791,16.265,92.3,92.24,16.266]
[1643578587387,31.925,92.3,92.24,16.266]
[1643578589988,31.925,92.3,92.231,45.28154479]
[1643578591290,31.925,92.3,92.232,0.25]
[1643578592089,31.925,92.3,92.24,16.266]
[1643578592590,2.95669142,92.299,92.231,45.28154479]
[1643578592790,16.271,92.27,92.172,107.8]
[1643578592989,31.931,92.27,92.172,107.8]
[1643578593190,45.441,92.27,92.172,107.8]
[1643578593790,45.441,92.27,92.173,41.56287543]
[1643578593992,45.441,92.27,92.211,32.88971158]
[1643578594592,45.441,92.27,92.21,16.271]
[1643578594792,16.274,92.25,92.102,113.3]
[1643578594993,15.66,92.24,92.142,107.8]
[1643578595192,15.66,92.24,92.17,16.277]
[1643578595592,15.66,92.24,92.171,43.00454979]
[1643578595794,16.277,92.23,92.171,43.00454979]
[1643578595994,16.277,92.23,92.172,0.25]
[1643578596196,16.277,92.23,92.171,43.00454979]
[1643578597098,16.277,92.23,92.18,16.276]
[1643578600697,31.935,92.24,92.18,16.276]
[1643578605599,31.935,92.24,92.17,16.278]
[1643578605802,2.95669142,92.239,92.107,24.1771]
[1643578606204,16.283,92.2,92.11,6.0]
[1643578606402,24.0425,92.199,92.12,54.277]
[1643578607204,24.0425,92.199,92.14,16.283]
[1643578607411,24.0425,92.199,92.141,40.93329923]
[1643578607604,24.0425,92.199,92.141,40.68329923]
[1643578607805,24.0425,92.199,92.142,0.25]
[1643578608205,24.0425,92.199,92.15,16.28]
[1643578609817,16.281,92.2,92.15,16.28]
[1643578619943,16.281,92.2,92.141,40.68329923]
[1643578620141,31.941,92.2,92.141,40.68329923]
[1643578624546,15.66,92.2,92.142,107.8]
[1643578624746,15.66,92.24,92.141,43.16232988]
[1643578624945,23.7594,92.237,92.15,6.0]
[1643578625147,15.66,92.24,92.15,22.282]
[1643578625350,15.66,92.24,92.151,2.47903065]
[1643578627150,31.935,92.24,92.171,43.3261457]
[1643578629054,31.935,92.24,92.19,16.274]
[1643578629254,31.935,92.24,92.191,44.38720831]
[1643578629454,15.66,92.24,92.191,44.38720831]
[1643578631155,31.934,92.24,92.191,44.38720831]
[1643578636854,110.75669142,92.239,92.191,44.38720831]
[1643578637055,16.279,92.23,92.191,44.38720831]
[1643578637256,15.66,92.22,92.191,44.38720831]
[1643578638260,16.28,92.21,92.191,44.38720831]
[1643578640865,16.28,92.21,92.17,16.279]
[1643578641060,16.28,92.21,92.14,54.266]
[1643578641260,16.28,92.21,92.14,54.516]
[1643578641964,31.938,92.22,92.16,16.28]
[1643578642162,15.66,92.23,92.161,40.47038856]
[1643578642361,15.66,92.24,92.161,42.94043573]
[1643578642563,24.9185,92.249,92.17,6.0]
[1643578642763,24.9185,92.249,92.17,6.25]
[1643578642966,24.9185,92.249,92.171,2.47004717]
[1643578643962,16.274,92.24,92.171,2.47004717]
[1643578644164,16.274,92.24,92.181,34.63275413]
[1643578644364,2.95669142,92.239,92.181,34.63275413]
[1643578644563,15.66,92.23,92.181,34.63275413]
[1643578644963,2.95669142,92.229,92.181,34.63275413]
[1643578645563,16.281,92.22,92.181,34.63275413]
[1643578646262,12.2424221,92.238,92.181,34.63275413]
[1643578646464,15.66,92.24,92.181,34.63275413]
[1643578647064,16.276,92.23,92.181,34.63275413]
[1643578647667,31.936,92.23,92.181,34.63275413]
[1643578652173,15.66,92.23,92.19,16.274]
[1643578652672,2.95669142,92.248,92.19,16.274]
[1643578655174,2.98852273,92.277,92.19,16.524]
[1643578655381,2.98852273,92.293,92.191,2.47004717]
[1643578655578,74.42687549,92.274,92.22,16.258]
[1643578655775,113.3,92.335,92.22,16.258]
[1643578655776,2.98852273,92.312,92.22,16.508]
[1643578655986,2.98852273,92.322,92.23,6.0]
[1643578656182,2.98852273,92.327,92.231,107.8]
[1643578656382,2.98852273,92.327,92.232,23.3021]
[1643578656579,2.98852273,92.328,92.242,6.0]
[1643578656779,35.96950324,92.325,92.242,6.0]
[1643578656980,2.99648119,92.326,92.242,6.0]
[1643578656981,2.99648119,92.327,92.25,16.256]
[1643578657178,31.918,92.34,92.25,16.256]
[1643578657179,2.99648119,92.339,92.25,16.256]
[1643578657378,2.99648119,92.339,92.214,2.48882119]
[1643578657578,2.99648119,92.339,92.201,24.5258]
[1643578657579,2.98852273,92.334,92.201,24.5258]
[1643578657783,15.66,92.32,92.22,0.25]
[1643578657983,15.66,92.32,92.23,16.265]
[1643578657984,84.1093854,92.319,92.23,16.265]
[1643578658383,84.1093854,92.319,92.23,16.515]
[1643578659000,16.264,92.31,92.23,16.515]
[1643578661308,84.1093854,92.319,92.231,107.8]
[1643578661501,84.1093854,92.319,92.25,16.26]
[1643578661701,84.1093854,92.319,92.232,24.1205]
[1643578663203,16.263,92.31,92.24,16.263]
[1643578663405,16.263,92.31,92.24,16.513]
[1643578663602,84.1093854,92.319,92.24,16.513]
[1643578666213,16.263,92.31,92.24,16.513]
[1643578667215,84.1093854,92.319,92.24,16.513]
[1643578668516,38.3402854,92.319,92.24,16.513]
[1643578668718,38.3402854,92.319,92.25,6.0]
[1643578668922,38.3402854,92.319,92.27,16.257]
[1643578669618,38.3402854,92.319,92.25,54.439]
[1643578669818,38.3402854,92.319,92.25,54.189]
[1643578671020,38.3402854,92.319,92.26,16.26]
[1643578671422,38.3402854,92.319,92.26,16.51]
[1643578673526,15.66,92.32,92.26,16.51]
[1643578673823,15.66,92.35,92.261,2.48430932]
[1643578674026,1.48848539,92.362,92.28,16.253]
[1643578674222,1.48848539,92.358,92.28,16.253]
[1643578674422,1.48848539,92.356,92.28,16.253]
[1643578674622,1.48848539,92.351,92.28,16.253]
[1643578674831,15.66,92.34,92.28,16.253]
[1643578675022,16.4183338,92.339,92.28,16.253]
[1643578675422,16.4183338,92.339,92.25,54.188]
[1643578676023,16.4183338,92.339,92.26,6.0]
[1643578676423,16.4183338,92.339,92.26,6.25]
[1643578677024,16.4183338,92.339,92.261,6.0]
[1643578677249,16.4183338,92.339,92.261,6.25]
[1643578677424,16.4183338,92.339,92.261,18.71]
[1643578678625,16.4183338,92.339,92.261,126.51]
[1643578679025,16.4183338,92.339,92.28,16.256]
[1643578679230,16.256,92.35,92.28,16.256]
[1643578679231,1.00060568,92.35,92.282,49.0]
[1643578679426,1.14,92.456,92.283,49.0]
[1643578679627,1.49104905,92.374,92.293,55.0]
[1643578679832,0.32238404,92.398,92.294,49.25]
[1643578680034,0.00238404,92.398,92.324,0.31028328]
[1643578680230,0.00238404,92.421,92.34,0.31046507]
[1643578680433,16.2903,92.487,92.371,0.31138485]
[1643578680434,0.00238404,92.449,92.371,0.31138485]
[1643578680629,7.51551777,92.553,92.371,0.31138485]
[1643578680630,0.00238404,92.47,92.371,0.31138485]
[1643578680831,11.88426999,92.609,92.371,0.31138485]
[1643578680832,0.00238404,92.486,92.388,0.32017484]
[1643578681052,6.03103268,92.5,92.44,16.224]
[1643578681233,0.00238404,92.527,92.455,0.30799934]
[1643578681436,0.00238404,92.542,92.46,211.42]
[1643578681635,325.24558146,92.518,92.486,0.32376639]
[1643578681841,277.36388146,92.518,92.5,15.66]
[1643578682035,134.30388146,92.518,92.51,6.0]
[1643578682342,96.46518146,92.518,92.511,0.25]
[1643578682533,2.98209811,92.607,92.511,0.25]
[1643578682735,2.98209811,92.611,92.52,195.76]
[1643578682935,2.98209811,92.611,92.53,15.66]
[1643578683134,0.20735256,92.577,92.54,16.206]
[1643578683334,0.20735256,92.577,92.55,15.66]
[1643578683534,0.20735256,92.577,92.55,21.66]
[1643578683735,0.20735256,92.577,92.551,0.25]
[1643578684033,0.20735256,92.577,92.551,9.93]
[1643578684234,0.20735256,92.577,92.56,16.205]
[1643578684436,0.20735256,92.577,92.57,15.66]
[1643578685059,0.20735256,92.577,92.571,0.25]
[1643578685258,0.20735256,92.577,92.57,15.66]
[1643578685862,0.20735256,92.577,92.551,9.68]
[1643578686059,0.20735256,92.577,92.561,6.0]
[1643578686260,0.20735256,92.577,92.551,9.68]
[1643578687563,0.20735256,92.577,92.551,7.67]
[1643578687764,0.20735256,92.577,92.51,15.66]
[1643578688866,0.20735256,92.577,92.511,0.25]
[1643578689567,0.20735256,92.577,92.52,6.0]
[1643578689764,0.20735256,92.577,92.53,15.66]
[1643578689967,0.20735256,92.577,92.54,16.204]
[1643578690165,0.20735256,92.577,92.55,15.66]
[1643578690366,0.20735256,92.577,92.551,0.25]
[1643578690567,0.00735256,92.577,92.551,2.76119003]
[1643578690966,0.00735256,92.577,92.561,6.0]
[1643578691166,0.00735256,92.577,92.57,15.66]
[1643578691367,0.41470512,92.577,92.571,0.25]
[1643578691570,16.198,92.69,92.572,6.0]
[1643578691767,16.198,92.69,92.573,0.25]
[1643578691965,16.198,92.69,92.581,6.0]
[1643578692167,16.198,92.69,92.59,15.66]
[1643578692365,0.1,92.689,92.591,0.25]
[1643578692568,0.1,92.689,92.6,16.197]
[1643578692769,16.196,92.71,92.61,15.66]
[1643578692770,0.1,92.707,92.61,15.66]
[1643578693066,1.14,92.787,92.61,15.66]
[1643578693067,0.1,92.709,92.61,15.66]
[1643578693267,2.95669142,92.706,92.61,15.66]
[1643578693567,16.196,92.7,92.59,21.66]
[1643578693767,0.1,92.699,92.59,21.66]
[1643578693968,2.95669142,92.699,92.59,21.66]
[1643578694168,2.99260368,92.708,92.59,21.66]
[1643578694368,2.95669142,92.698,92.59,21.66]
[1643578694569,16.199,92.69,92.591,0.25]
[1643578694772,0.1,92.689,92.591,0.25]
[1643578695170,0.1,92.729,92.6,6.0]
[1643578695371,0.1,92.729,92.601,0.25]
[1643578695573,0.1,92.729,92.61,15.66]
[1643578695772,37.51834224,92.729,92.63,16.193]
[1643578695971,0.1,92.728,92.63,29.853]
[1643578696170,0.1,92.728,92.631,0.25]
[1643578696771,16.193,92.72,92.63,29.853]
[1643578696971,0.1,92.719,92.64,12.97]
[1643578697170,0.1,92.719,92.62,12.97]
[1643578697473,0.1,92.728,92.62,12.97]
[1643578697870,2.95669142,92.727,92.62,12.97]
[1643578698171,0.1,92.728,92.62,29.164]
[1643578698373,0.1,92.729,92.64,53.947]
[1643578698571,0.1,92.769,92.65,18.97]
[1643578698771,71.8274,92.829,92.651,0.25]
[1643578698772,0.1,92.817,92.651,0.25]
[1643578698972,0.1,92.828,92.651,224.3264]
[1643578699171,0.1,92.828,92.67,16.176]
[1643578699372,0.1,92.828,92.68,229.035]
[1643578699572,0.1,92.828,92.69,12.97]
[1643578699772,0.1,92.828,92.691,108.05]
[1643578700173,35.06957162,92.822,92.701,6.0]
[1643578700372,45.92364094,92.808,92.71,12.97]
[1643578700572,0.1,92.807,92.71,12.97]
[1643578700773,0.1,92.828,92.711,0.25]
[1643578700975,0.1,92.828,92.72,6.0]
[1643578701172,0.1,92.828,92.73,12.97]
[1643578701373,0.1,92.828,92.73,0.25]
[1643578701572,41.69016791,92.8,92.73,0.25]
[1643578701772,0.1,92.799,92.7,6.0]
[1643578701972,107.9,92.828,92.68,12.97]
[1643578702172,0.1,92.827,92.68,12.97]
[1643578702573,107.8,92.819,92.68,12.97]
[1643578702775,34.34559601,92.768,92.68,12.97]
[1643578702973,0.1,92.767,92.68,12.97]
[1643578703374,0.1,92.767,92.681,0.25]
[1643578703776,0.1,92.767,92.68,12.97]
[1643578704475,12.97,92.82,92.681,0.25]
[1643578704675,0.1,92.819,92.681,2.75070492]
[1643578704875,0.1,92.828,92.681,2.75070492]
[1643578705075,16.183,92.79,92.682,2.50070492]
[1643578705277,16.183,92.79,92.681,0.25]
[1643578705278,42.082885,92.777,92.683,0.25]
[1643578705475,0.1,92.776,92.681,0.25]
[1643578706077,0.1,92.809,92.682,2.50070492]
[1643578706278,0.1,92.828,92.69,22.178]
[1643578706479,0.1,92.828,92.7,12.97]
[1643578706776,0.1,92.828,92.701,0.25]
[1643578706977,0.1,92.828,92.71,6.0]
[1643578706978,44.69032293,92.82,92.71,6.0]
[1643578707177,33.77971039,92.806,92.72,12.97]
[1643578707476,33.77971039,92.806,92.71,6.0]
[1643578707477,0.1,92.805,92.71,12.97]
[1643578707677,0.1,92.828,92.711,0.25]
[1643578708277,3.33209811,92.828,92.71,12.97]
[1643578708576,3.33209811,92.828,92.605,0.53]
[1643578708577,39.02223922,92.774,92.69,12.97]
[1643578708779,2.95669142,92.77,92.68,12.97]
[1643578708978,2.95669142,92.77,92.662,6.0]
[1643578709178,0.1,92.773,92.662,6.0]
[1643578709378,2.98209811,92.804,92.67,6.0]
[1643578709577,0.1,92.809,92.67,6.0]
[1643578709578,2.98209811,92.805,92.673,6.0]
[1643578709778,2.98209811,92.804,92.674,0.25]
[1643578709979,16.186,92.77,92.671,0.25]
[1643578710180,0.1,92.769,92.67,12.97]
[1643578710580,2.95669142,92.766,92.6,162.15]
[1643578710785,2.98209811,92.753,92.58,162.15]
[1643578710981,2.95535935,92.757,92.58,162.15]
[1643578710982,2.98209811,92.747,92.63,12.97]
[1643578711581,3.05535935,92.751,92.63,12.97]
[1643578711784,0.25,92.75,92.631,0.25]
[1643578711980,16.193,92.73,92.64,6.0]
[1643578712182,35.95491971,92.729,92.64,12.97]
[1643578712380,0.1,92.728,92.641,0.25]
[1643578713382,0.1,92.728,92.633,0.25]
[1643578713583,0.25,92.729,92.633,0.25]
[1643578713786,0.25,92.746,92.64,12.97]
[1643578713984,53.982,92.74,92.64,12.97]
[1643578714185,6.04159155,92.739,92.64,12.97]
[1643578714384,5.94159155,92.738,92.611,126.30622037]
[1643578714586,6.0,92.729,92.621,6.0]
[1643578714784,16.194,92.72,92.621,6.0]
[1643578714983,39.05892147,92.719,92.621,6.0]
[1643578715185,0.1,92.718,92.621,6.0]
[1643578715384,0.1,92.718,92.611,107.8]
[1643578715587,0.1,92.718,92.621,6.0]
[1643578715785,16.196,92.71,92.601,107.8]
[1643578715985,107.9,92.709,92.601,107.8]
[1643578716185,0.1,92.708,92.601,107.8]
[1643578716384,0.1,92.709,92.611,6.0]
[1643578716984,0.1,92.709,92.61,6.0]
[1643578717285,0.35,92.709,92.611,0.25]
[1643578717986,16.198,92.7,92.611,0.25]
[1643578718187,38.60430984,92.699,92.611,0.25]
[1643578718484,0.1,92.698,92.611,0.25]
[1643578718684,0.1,92.698,92.602,0.25]
[1643578719486,6.0,92.689,92.602,0.25]
[1643578719888,6.0,92.689,92.601,107.8]
[1643578720088,6.0,92.689,92.602,0.25]
[1643578720288,6.0,92.689,92.601,107.8]
[1643578721492,2.97731063,92.688,92.601,107.8]
[1643578722292,2.97731063,92.688,92.611,6.0]
[1643578722491,2.98209811,92.703,92.62,12.97]
[1643578722691,0.04281733,92.737,92.62,12.97]
[1643578722692,2.98209811,92.708,92.62,12.97]
[1643578722892,2.98209811,92.714,92.63,6.0]
[1643578723092,2.98209811,92.711,92.631,6.0]
[1643578723294,2.98209811,92.713,92.631,6.0]
[1643578723492,2.98209811,92.714,92.632,0.25]
[1643578724493,2.98209811,92.713,92.632,0.25]
[1643578724692,2.98209811,92.713,92.62,12.97]
[1643578725093,8.98209811,92.703,92.601,107.8]
[1643578725298,2.98209811,92.698,92.603,0.25]
[1643578726224,2.98209811,92.699,92.603,0.25]
[1643578726423,2.98209811,92.699,92.612,6.0]
[1643578726825,2.98209811,92.7,92.613,0.25]
[1643578727024,2.98209811,92.699,92.613,0.25]
[1643578727225,0.25,92.699,92.613,0.25]
[1643578727425,0.25,92.699,92.62,6.0]
[1643578727625,2.97851837,92.698,92.62,6.0]
[1643578727825,2.97851837,92.698,92.621,0.25]
[1643578728026,2.98209811,92.701,92.621,0.25]
[1643578728227,2.97851837,92.7,92.63,12.97]
[1643578728628,2.98209811,92.705,92.631,0.25]
[1643578728829,2.97851837,92.699,92.631,0.25]
[1643578729031,2.98209811,92.701,92.631,0.25]
[1643578729228,2.97851837,92.698,92.631,0.25]
[1643578729429,2.98209811,92.705,92.631,0.25]
[1643578729628,2.98209811,92.706,92.631,0.25]
[1643578729829,6.0,92.695,92.63,12.97]
[1643578730032,6.0,92.685,92.61,12.97]
[1643578730229,2.97851837,92.684,92.6,12.97]
[1643578730430,40.54988638,92.684,92.58,29.167]
[1643578730634,0.1,92.683,92.58,29.167]
[1643578730830,3.07851837,92.683,92.58,29.167]
[1643578731039,3.07851837,92.683,92.6,12.97]
[1643578731237,2.97851837,92.683,92.602,0.25]
[1643578731435,2.97851837,92.684,92.611,6.0]
[1643578731736,2.98209811,92.692,92.611,6.0]
[1643578731935,2.98209811,92.692,92.6,12.97]
[1643578732139,2.98209811,92.687,92.6,12.97]
[1643578732337,2.98209811,92.68,92.6,12.97]
[1643578732541,2.98209811,92.679,92.6,12.97]
[1643578732934,3.08806713,92.69,92.6,12.97]
[1643578732935,0.1,92.69,92.601,107.8]
[1643578733136,0.1,92.69,92.611,113.8]
[1643578733337,2.98787359,92.69,92.611,107.8]
[1643578733540,2.98209811,92.701,92.621,6.0]
[1643578733940,6.0,92.691,92.622,0.25]
[1643578734138,6.0,92.691,92.63,6.0]
[1643578734338,6.0,92.691,92.631,0.25]
[1643578734538,0.25,92.7,92.631,0.25]
[1643578734738,6.0,92.694,92.631,0.25]
[1643578735338,41.20595008,92.693,92.631,0.25]
[1643578735539,0.1,92.692,92.631,0.25]
[1643578736739,6.0,92.694,92.631,0.25]
[1643578737339,2.99137584,92.693,92.631,0.25]
[1643578738141,2.98209811,92.701,92.64,6.0]
[1643578738341,2.98209811,92.706,92.65,12.97]
[1643578738642,2.98209811,92.708,92.66,6.0]
[1643578738843,2.99137584,92.705,92.661,0.25]
[1643578739042,2.98209811,92.71,92.661,0.25]
[1643578739043,2.99137584,92.707,92.661,14.01]
[1643578739342,2.98209811,92.711,92.661,14.01]
[1643578739541,2.99137584,92.706,92.661,14.01]
[1643578739743,2.98209811,92.714,92.661,14.01]
[1643578739941,2.98209811,92.715,92.661,14.01]
[1643578740344,2.98209811,92.713,92.661,14.01]
[1643578740949,2.98209811,92.713,92.661,121.81]
[1643578741147,2.98209811,92.713,92.661,14.01]
[1643578741352,2.98209811,92.714,92.671,6.0]
[1643578741747,3.03913395,92.737,92.672,0.25]
[1643578741748,2.98209811,92.723,92.672,0.25]
[1643578742146,2.98209811,92.727,92.672,0.25]
[1643578742346,2.99814031,92.722,92.68,6.0]
[1643578742546,2.98209811,92.728,92.681,6.0]
[1643578742747,2.98209811,92.729,92.681,6.25]
[1643578743547,2.98209811,92.735,92.681,0.25]
[1643578743848,2.98209811,92.735,92.67,29.153]
[1643578743849,0.04281733,92.737,92.68,12.97]
[1643578744053,0.04281733,92.737,92.681,107.8]
[1643578744252,0.04281733,92.737,92.681,108.05]
[1643578744453,0.04281733,92.737,92.691,113.8]
[1643578744878,0.04281733,92.737,92.692,0.25]
[1643578745279,0.04281733,92.737,92.7,12.97]
[1643578746182,0.04281733,92.737,92.701,107.8]
[1643578746385,0.04281733,92.737,92.71,6.0]
[1643578746581,0.04281733,92.737,92.692,11.01]
[1643578746781,0.04281733,92.737,92.702,2.50737049]
[1643578746983,0.04281733,92.737,92.702,6.0]
[1643578747183,0.04281733,92.737,92.703,6.0]
[1643578747382,0.04281733,92.737,92.71,12.97]
[1643578747786,0.04281733,92.737,92.711,0.25]
[1643578749692,0.04281733,92.737,92.704,6.25]
[1643578749890,0.04281733,92.737,92.704,6.0]
[1643578750085,0.04281733,92.737,92.71,12.97]
[1643578750288,0.04281733,92.737,92.711,0.25]
[1643578751585,0.04281733,92.737,92.711,108.05]
[1643578751787,0.04281733,92.737,92.711,0.25]
[1643578752587,0.04281733,92.737,92.71,12.97]
[1643578752789,0.04281733,92.737,92.665,381.01189328]
[1643578752987,0.04281733,92.737,92.67,12.97]
[1643578753186,0.04281733,92.737,92.665,381.01189328]
[1643578753787,0.04281733,92.737,92.67,12.97]
[1643578753989,0.04281733,92.737,92.671,107.8]
[1643578755790,0.04281733,92.737,92.693,0.25]
[1643578755990,0.04281733,92.737,92.671,107.8]
[1643578757193,0.04281733,92.737,92.693,0.25]
[1643578757397,0.04281733,92.737,92.671,107.8]
[1643578757594,0.04281733,92.737,92.67,15.55]
[1643578757992,0.04281733,92.737,92.665,381.01189328]
[1643578758594,16.191,92.73,92.665,381.01189328]
[1643578758792,0.1,92.729,92.665,381.01189328]
[1643578758993,2.98209811,92.725,92.59,31.746]
[1643578759195,2.98209811,92.721,92.59,31.746]
[1643578759394,2.98209811,92.715,92.59,31.746]
[1643578759593,2.98209811,92.714,92.591,17.47613445]
[1643578759793,38.68387133,92.709,92.591,17.47613445]
[1643578759993,0.1,92.708,92.6,16.195]
[1643578760297,0.1,92.708,92.601,23.47613445]
[1643578760493,0.25,92.72,92.61,15.55]
[1643578760693,2.96891705,92.719,92.61,15.55]
[1643578760892,16.194,92.71,92.61,33.02613445]
[1643578761096,0.1,92.709,92.611,17.89672842]